bitfinex-derivatives/quotes_BTCF0:USTF0_20250719
["timestamp","ask_amount","ask_price","bid_price","bid_amount"]
[1752902537627,1.7090666,118220.0,118210.0,0.64081]
[1752902538523,1.3482666,118220.0,118210.0,0.64081]
[1752902538926,1.7090666,118220.0,118210.0,0.64081]
[1752902540031,1.3482666,118220.0,118210.0,0.64081]
[1752902540231,1.7090666,118220.0,118210.0,0.64081]
[1752902540532,1.76977386,118220.0,118210.0,0.64081]
[1752902540728,1.40897386,118220.0,118210.0,0.64081]
[1752902540929,1.76977386,118220.0,118210.0,0.64081]
[1752902543828,1.40897386,118220.0,118210.0,0.64081]
[1752902544031,1.76977386,118220.0,118210.0,0.64081]
[1752902545335,1.40897386,118220.0,118210.0,0.64081]
[1752902545529,1.76977386,118220.0,118210.0,0.64081]
[1752902546129,1.40897386,118220.0,118210.0,0.64081]
[1752902546336,1.76977386,118220.0,118210.0,0.64081]
[1752902546533,1.40897386,118220.0,118210.0,0.64081]
[1752902546734,1.76977386,118220.0,118210.0,0.64081]
[1752902546930,1.40897386,118220.0,118210.0,0.64081]
[1752902547331,1.3482666,118220.0,118210.0,0.64081]
[1752902549241,1.76977386,118220.0,118210.0,0.64081]
[1752902549434,1.7379158,118220.0,118210.0,0.64081]
[1752902550634,1.67720854,118220.0,118210.0,0.64081]
[1752902550834,1.7379158,118220.0,118210.0,0.64081]
[1752902551935,1.41900676,118220.0,118210.0,0.64081]
[1752902552133,2.0987158,118220.0,118210.0,0.64081]
[1752902552438,1.7379158,118220.0,118210.0,0.64081]
[1752902552738,2.0987158,118220.0,118210.0,0.64081]
[1752902553239,1.7379158,118220.0,118210.0,0.64081]
[1752902554939,2.0987158,118220.0,118210.0,0.64081]
[1752902555738,1.7379158,118220.0,118210.0,0.64081]
[1752902556131,2.0987158,118220.0,118210.0,0.64081]
[1752902556334,1.7379158,118220.0,118210.0,0.64081]
[1752902557441,2.0987158,118220.0,118210.0,0.64081]
[1752902557639,1.7379158,118220.0,118210.0,0.64081]
[1752902560739,2.0987158,118220.0,118210.0,0.64081]
[1752902560941,1.7379158,118220.0,118210.0,0.64081]
[1752902561839,2.0987158,118220.0,118210.0,0.64081]
[1752902562843,1.7379158,118220.0,118210.0,0.64081]
[1752902563043,2.0987158,118220.0,118210.0,0.64081]
[1752902563342,1.7379158,118220.0,118210.0,0.64081]
[1752902565044,2.03800854,118220.0,118210.0,0.64081]
[1752902565943,1.73799204,118220.0,118210.0,0.64081]
[1752902567345,1.73803036,118220.0,118210.0,0.64081]
[1752902568341,2.09883036,118220.0,118210.0,0.64081]
[1752902568542,1.73803036,118220.0,118210.0,0.64081]
[1752902568741,2.09883036,118220.0,118210.0,0.64081]
[1752902568948,1.73803036,118220.0,118210.0,0.64081]
[1752902571555,2.03804686,118220.0,118210.0,0.64081]
[1752902572055,2.0988273,118220.0,118210.0,0.64081]
[1752902573450,1.7380273,118220.0,118210.0,0.64081]
[1752902574857,2.0988273,118220.0,118210.0,0.64081]
[1752902576358,1.7380273,118220.0,118210.0,0.64081]
[1752902576558,2.0988273,118220.0,118210.0,0.64081]
[1752902578267,2.03804686,118220.0,118210.0,0.64081]
[1752902579560,1.67724686,118220.0,118210.0,0.64081]
[1752902579760,2.03804686,118220.0,118210.0,0.64081]
[1752902581658,1.83670138,118220.0,118210.0,0.64045]
[1752902581864,1.67724686,118220.0,118210.0,0.64045]
[1752902582760,1.35833782,118220.0,118210.0,0.64045]
[1752902583064,1.67724686,118220.0,118210.0,0.64045]
[1752902583668,1.35833782,118220.0,118210.0,0.96896852]
[1752902583968,1.35833782,118220.0,118210.0,1.32976852]
[1752902584163,1.51779234,118220.0,118210.0,1.32976852]
[1752902584364,1.01779234,118220.0,118210.0,1.170314]
[1752902584766,1.01779234,118220.0,118210.0,1.32976852]
[1752902587268,1.17724686,118220.0,118210.0,1.32976852]
[1752902588172,1.24432528,118220.0,118210.0,1.00125]
[1752902588769,1.2380273,118220.0,118210.0,1.00125]
[1752902589165,1.2380273,118220.0,118210.0,1.00117]
[1752902593075,1.2380273,118220.0,118210.0,0.64037]
[1752902599886,1.2380273,118220.0,118210.0,0.809434]
[1752902600179,1.2380273,118220.0,118210.0,1.170234]
[1752902600682,1.2380273,118220.0,118210.0,1.00117]
[1752902601382,1.2380273,118220.0,118210.0,0.64037]
[1752902603380,1.21920393,118220.0,118210.0,0.64037]
[1752902603585,1.28760491,118220.0,118210.0,0.64037]
[1752902604488,1.21920393,118220.0,118210.0,0.64037]
[1752902608193,1.21920393,118220.0,118210.0,1.1702338]
[1752902608691,1.21920393,118220.0,118210.0,1.00117]
[1752902608892,1.21920393,118220.0,118210.0,0.64037]
[1752902609289,1.21920393,118220.0,118210.0,1.00117]
[1752902609890,1.21920393,118220.0,118210.0,0.64037]
[1752902610194,1.21920393,118220.0,118210.0,1.00117]
[1752902610690,1.21920393,118220.0,118210.0,0.64037]
[1752902612191,1.21920393,118220.0,118210.0,1.00117]
[1752902614692,1.21920393,118220.0,118210.0,0.64037]
[1752902614894,1.21902283,118220.0,118210.0,0.64037]
[1752902616397,1.21902283,118220.0,118210.0,0.60016]
[1752902619800,1.28710542,118220.0,118210.0,0.60016]
[1752902620598,1.21902283,118220.0,118210.0,0.60016]
[1752902623801,1.15824239,118220.0,118210.0,0.60016]
[1752902626907,0.83933335,118220.0,118210.0,0.60016]
[1752902627102,1.15824239,118220.0,118210.0,0.60016]
[1752902628404,0.51039141,118220.0,118210.0,0.60016]
[1752902628608,0.82930045,118220.0,118210.0,0.60016]
[1752902628903,0.89601763,118220.0,118210.0,0.60016]
[1752902632310,0.95686847,118220.0,118210.0,0.60016]
[1752902635111,0.89015129,118220.0,118210.0,0.60016]
[1752902640713,0.89015129,118220.0,118210.0,0.019]
[1752902640919,0.89015129,118220.0,118210.0,0.59972]
[1752902642718,0.57124225,118220.0,118210.0,0.59972]
[1752902642924,0.89015129,118220.0,118210.0,0.96052]
[1752902643218,0.89015129,118220.0,118210.0,0.59972]
[1752902648822,0.95719146,118220.0,118210.0,0.59972]
[1752902650717,0.95719146,118220.0,118210.0,0.59572]
[1752902650921,0.89015129,118220.0,118210.0,0.59572]
[1752902651224,0.88815129,118220.0,118210.0,0.58172]
[1752902651425,1.40940581,118220.0,118210.0,0.58672]
[1752902651625,1.24995129,118220.0,118210.0,0.58672]
[1752902651926,1.90940581,118220.0,118210.0,0.58572]
[1752902652924,1.74995129,118220.0,118210.0,0.58572]
[1752902653127,0.1690638,118210.0,118200.0,0.0402]
[1752902653330,0.977146,118210.0,118200.0,0.62084]
[1752902654218,0.978146,118210.0,118200.0,0.62184]
[1752902654731,0.979146,118210.0,118200.0,0.62584]
[1752902655023,0.66023696,118210.0,118200.0,0.62584]
[1752902655228,1.21225,118210.0,118200.0,0.62584]
[1752902655428,1.71225,118210.0,118200.0,0.62584]
[1752902657123,2.07305,118210.0,118200.0,0.62584]
[1752902657630,1.71225,118210.0,118200.0,0.62584]
[1752902658930,1.71225,118210.0,118200.0,0.58564]
[1752902661431,1.71225,118210.0,118200.0,0.62751]
[1752902674647,2.07305,118210.0,118200.0,0.62751]
[1752902674848,1.71225,118210.0,118200.0,0.62751]
[1752902678845,1.55279548,118210.0,118200.0,0.62751]
[1752902679052,1.55279548,118210.0,118200.0,1.31684262]
[1752902679542,1.05279548,118210.0,118200.0,1.1573881]
[1752902681353,1.05279548,118210.0,118200.0,1.31684262]
[1752902682252,0.72783087,118210.0,118200.0,1.1573881]
[1752902683851,0.66698003,118210.0,118200.0,1.1573881]
[1752902686354,0.66698003,118210.0,118200.0,0.98831]
[1752902687455,0.66698003,118210.0,118200.0,1.1573881]
[1752902687957,0.66698003,118210.0,118200.0,0.98831]
[1752902689057,0.66698003,118210.0,118200.0,1.1573881]
[1752902690456,0.50752551,118210.0,118200.0,1.1573881]
[1752902690658,0.66698003,118210.0,118200.0,1.1573881]
[1752902691055,0.66698003,118210.0,118200.0,1.31684262]
[1752902693062,0.66698003,118210.0,118200.0,1.1573881]
[1752902694662,0.66698003,118210.0,118200.0,1.31684262]
[1752902695261,0.47238551,118210.0,118200.0,1.47629714]
[1752902695568,0.63184003,118210.0,118200.0,1.31684262]
[1752902696363,0.47238551,118210.0,118200.0,1.31684262]
[1752902696768,0.63184003,118210.0,118200.0,1.47629714]
[1752902697968,0.63184003,118210.0,118200.0,1.31684262]
[1752902698268,0.63184003,118210.0,118200.0,1.47629714]
[1752902698568,0.47238551,118210.0,118200.0,1.47629714]
[1752902698769,0.63184003,118210.0,118200.0,1.47629714]
[1752902699068,0.63184003,118210.0,118200.0,1.31684262]
[1752902699670,0.63184003,118210.0,118200.0,1.47629714]
[1752902701870,0.63184003,118210.0,118200.0,1.31684262]
[1752902702071,0.64818003,118210.0,118200.0,1.31684262]
[1752902702273,0.65096003,118210.0,118200.0,1.31684262]
[1752902702467,0.66612003,118210.0,118200.0,1.31684262]
[1752902705073,0.50666551,118210.0,118200.0,1.31684262]
[1752902705273,0.66612003,118210.0,118200.0,1.31684262]
[1752902709374,0.66612003,118210.0,118200.0,1.1573881]
[1752902709673,0.66612003,118210.0,118200.0,1.31684262]
[1752902712172,0.66612003,118210.0,118200.0,1.1573881]
[1752902712376,0.66612003,118210.0,118200.0,1.31684262]
[1752902714375,0.73442748,118210.0,118200.0,1.31684262]
[1752902722979,0.73442748,118210.0,118200.0,0.95604262]
[1752902723181,0.73442748,118210.0,118200.0,1.67764262]
[1752902734192,0.57497296,118210.0,118200.0,1.83709714]
[1752902734789,0.54069296,118210.0,118200.0,2.13229714]
[1752902735493,0.54069296,118210.0,118200.0,2.23229714]
[1752902736993,0.54066974,118210.0,118200.0,2.23229714]
[1752902737890,0.54066974,118210.0,118200.0,1.51069714]
[1752902738090,0.54066974,118210.0,118200.0,2.23229714]
[1752902739904,0.54066974,118210.0,118200.0,1.51069714]
[1752902740105,0.54066974,118210.0,118200.0,2.23229714]
[1752902740503,0.54066974,118210.0,118200.0,1.93709714]
[1752902741304,0.54066974,118210.0,118200.0,1.6181881]
[1752902741504,0.54066974,118210.0,118200.0,1.93709714]
[1752902741898,0.70012426,118210.0,118200.0,1.93709714]
[1752902744108,0.70012426,118210.0,118200.0,1.35645714]
[1752902744313,0.73503426,118210.0,118200.0,1.93689714]
[1752902744700,0.57557974,118210.0,118200.0,1.93689714]
[1752902744906,0.73503426,118210.0,118200.0,1.93689714]
[1752902746410,0.73503426,118210.0,118200.0,2.23209714]
[1752902747616,0.57557974,118210.0,118200.0,2.23209714]
[1752902747913,0.73503426,118210.0,118200.0,2.23209714]
[1752902751116,0.73503426,118210.0,118200.0,1.51049714]
[1752902751318,0.73503426,118210.0,118200.0,2.23209714]
[1752902751609,0.73503426,118210.0,118200.0,1.51049714]
[1752902751815,0.73503426,118210.0,118200.0,2.23209714]
[1752902752218,0.73503426,118210.0,118200.0,1.9131881]
[1752902752414,0.73503426,118210.0,118200.0,2.23209714]
[1752902752610,0.73503426,118210.0,118200.0,1.65165714]
[1752902752819,0.73503426,118210.0,118200.0,2.23205714]
[1752902753415,0.57557974,118210.0,118200.0,2.23205714]
[1752902753616,0.73503426,118210.0,118200.0,2.23205714]
[1752902755110,0.66672681,118210.0,118200.0,2.23205714]
[1752902755310,0.66672681,118210.0,118200.0,1.9131481]
[1752902755511,0.66672681,118210.0,118200.0,3.40185714]
[1752902761428,0.50727229,118210.0,118200.0,3.40185714]
[1752902761628,0.66672681,118210.0,118200.0,3.40185714]
[1752902762527,0.50727229,118210.0,118200.0,3.40185714]
[1752902762722,0.66672681,118210.0,118200.0,3.40185714]
[1752902767731,0.66672681,118210.0,118200.0,2.68025714]
[1752902767928,0.66672681,118210.0,118200.0,3.40185714]
[1752902768832,0.50727229,118210.0,118200.0,3.40185714]
[1752902769033,0.66672681,118210.0,118200.0,3.40185714]
[1752902769934,0.66672681,118210.0,118200.0,2.82145714]
[1752902770132,0.82618133,118210.0,118200.0,2.03827]
[1752902770635,0.82618133,118210.0,118200.0,2.61855]
[1752902773334,0.82618133,118210.0,118200.0,2.25775]
[1752902773534,0.82618133,118210.0,118200.0,1.89695]
[1752902777633,0.82618133,118210.0,118200.0,2.0660281]
[1752902777837,0.66672681,118210.0,118200.0,2.0660281]
[1752902778738,0.66672681,118210.0,118200.0,1.89695]
[1752902781545,0.66672681,118210.0,118200.0,2.0660281]
[1752902781738,0.66672681,118210.0,118200.0,1.89695]
[1752902782039,0.50727229,118210.0,118200.0,1.89695]
[1752902782341,0.66672681,118210.0,118200.0,1.89695]
[1752902784942,0.66672681,118210.0,118200.0,2.25775]
[1752902785443,0.66672681,118210.0,118200.0,2.4268281]
[1752902785742,0.66672681,118210.0,118200.0,2.25775]
[1752902787245,0.66672681,118210.0,118200.0,2.58628262]
[1752902787442,0.66672681,118210.0,118200.0,2.25775]
[1752902789139,0.66672681,118210.0,118200.0,2.41720452]
[1752902789745,0.66672681,118210.0,118200.0,2.05640452]
[1752902794748,0.50727229,118210.0,118200.0,2.05640452]
[1752902794949,0.66672681,118210.0,118200.0,2.05640452]
[1752902795450,0.66672681,118210.0,118200.0,1.89695]
[1752902795642,0.66672681,118210.0,118200.0,2.05640452]
[1752902796047,0.66672681,118210.0,118200.0,1.89695]
[1752902798653,0.66672681,118210.0,118200.0,0.72715]
[1752902799352,0.72757765,118210.0,118200.0,0.72715]
[1752902802255,0.72757765,118210.0,118200.0,0.8962281]
[1752902802555,0.72757765,118210.0,118200.0,0.72715]
[1752902803456,0.74641065,118210.0,118200.0,0.72715]
[1752902805056,0.74637874,118210.0,118200.0,0.72715]
[1752902805556,0.58692422,118210.0,118200.0,0.72715]
[1752902805759,0.74637874,118210.0,118200.0,0.72715]
[1752902811264,0.90583326,118210.0,118200.0,0.72715]
[1752902811460,0.74637874,118210.0,118200.0,0.72715]
[1752902811660,0.90583326,118210.0,118200.0,0.72715]
[1752902812062,0.74637874,118210.0,118200.0,0.72715]
[1752902813969,0.90583326,118210.0,118200.0,0.72715]
[1752902814371,0.74637874,118210.0,118200.0,0.72715]
[1752902815071,0.74637874,118210.0,118200.0,0.8962281]
[1752902815271,0.74637874,118210.0,118200.0,0.72715]
[1752902815771,0.58692422,118210.0,118200.0,0.72715]
[1752902816069,0.74637874,118210.0,118200.0,0.72715]
[1752902816472,0.74637874,118210.0,118200.0,0.88660452]
[1752902816971,0.74637874,118210.0,118200.0,0.72715]
[1752902817371,0.74637874,118210.0,118200.0,0.88660452]
[1752902817672,0.74638137,118210.0,118200.0,0.88660452]
[1752902818671,0.74638137,118210.0,118200.0,1.05568262]
[1752902819976,0.74638137,118210.0,118200.0,0.88660452]
[1752902820266,0.58692685,118210.0,118200.0,1.41648262]
[1752902820469,0.55201685,118210.0,118200.0,1.57593714]
[1752902820670,0.49116601,118210.0,118200.0,1.57593714]
[1752902820968,0.65062053,118210.0,118200.0,1.57593714]
[1752902821171,0.49116601,118210.0,118200.0,1.57593714]
[1752902823772,0.49116143,118210.0,118200.0,1.57593714]
[1752902824479,0.43960143,118210.0,118200.0,1.57593714]
[1752902827472,0.44491143,118210.0,118200.0,1.93673714]
[1752902827770,0.27053763,118210.0,118200.0,1.93673714]
[1752902827965,0.24770463,118210.0,118200.0,2.09619166]
[1752902828169,0.24770463,118210.0,118200.0,2.34619166]
[1752902829276,0.24770463,118210.0,118200.0,2.09619166]
[1752902831481,0.24770463,118210.0,118200.0,1.93673714]
[1752902831482,0.231104,118210.0,118200.0,1.93673714]
[1752902833673,0.231104,118210.0,118200.0,2.09619166]
[1752902836879,0.231104,118210.0,118200.0,1.93673714]
[1752902837281,0.282744,118210.0,118200.0,1.93673714]
[1752902838081,0.282744,118210.0,118200.0,2.23193714]
[1752902845085,0.282744,118210.0,118200.0,2.39139166]
[1752902846087,0.282744,118210.0,118200.0,2.23193714]
[1752902846986,0.282744,118210.0,118200.0,2.39139166]
[1752902847286,0.29919183,118210.0,118200.0,2.39139166]
[1752902847488,0.282744,118210.0,118200.0,2.39139166]
[1752902848089,0.282744,118210.0,118200.0,2.23193714]
[1752902848488,0.4518079,118210.0,118200.0,2.23193714]
[1752902849390,0.29919631,118210.0,118200.0,2.23193714]
[1752902850193,0.29919631,118210.0,118200.0,2.39139166]
[1752902852192,0.29919631,118210.0,118200.0,2.43695292]
[1752902853993,0.29919631,118210.0,118200.0,2.39139166]
[1752902854696,0.29919631,118210.0,118200.0,1.66979166]
[1752902854898,0.29919631,118210.0,118200.0,2.39139166]
[1752902857401,0.29919631,118210.0,118200.0,2.43695292]
[1752902864503,0.46826011,118210.0,118200.0,2.43695292]
[1752902865199,0.29919631,118210.0,118200.0,2.43695292]
[1752902866207,0.29919631,118210.0,118200.0,2.2774984]
[1752902869111,0.46826021,118210.0,118200.0,2.2774984]
[1752902870614,0.29919631,118210.0,118200.0,3.4471784]
[1752902870912,0.29922537,118210.0,118200.0,3.4471784]
[1752902871713,0.29922537,118210.0,118200.0,3.60663292]
[1752902871912,0.24758537,118210.0,118200.0,3.60663292]
[1752902872811,0.23355869,118210.0,118200.0,3.60663292]
[1752902873212,0.23355869,118210.0,118200.0,3.60163292]
[1752902873414,0.23555869,118210.0,118200.0,3.61963292]
[1752902875721,0.18178628,118210.0,118200.0,3.57407166]
[1752902875924,0.18178628,118210.0,118200.0,3.63482001]
[1752902876614,1e-08,118210.0,118200.0,3.63482001]
[1752902878718,0.23310401,118210.0,118200.0,3.63482001]
[1752902879107,0.20274802,118210.0,118200.0,3.63482001]
[1752902881717,0.20274802,118210.0,118200.0,3.57407166]
[1752902883020,0.20274802,118210.0,118200.0,3.0957081]
[1752902883216,0.20274802,118210.0,118200.0,3.57407166]
[1752902883217,0.25713802,118210.0,118200.0,3.57407166]
[1752902883619,0.25713802,118210.0,118200.0,3.61969509]
[1752902885520,0.25713802,118210.0,118200.0,3.14133153]
[1752902885720,0.25713802,118210.0,118200.0,3.61969509]
[1752902895323,0.25713802,118210.0,118200.0,3.57407166]
[1752902895920,0.25713802,118210.0,118200.0,3.59092729]
[1752902896329,0.25713802,118210.0,118200.0,3.63654939]
[1752902897223,0.25713802,118210.0,118200.0,3.59092729]
[1752902898923,0.25713802,118210.0,118200.0,3.63655517]
[1752902899228,0.27367453,118210.0,118200.0,3.63655517]
[1752902899629,0.25713802,118210.0,118200.0,3.63655517]
[1752902899931,0.27367445,118210.0,118200.0,3.63655517]
[1752902900331,0.25713802,118210.0,118200.0,3.59092729]
[1752902901029,0.25713802,118210.0,118200.0,3.65167564]
[1752902902732,0.25713802,118210.0,118200.0,3.59092729]
[1752902904031,0.27368493,118210.0,118200.0,3.6365803]
[1752902905235,0.27368493,118210.0,118200.0,3.59092729]
[1752902905427,0.27368493,118210.0,118200.0,3.73132729]
[1752902905628,0.27368493,118210.0,118200.0,3.59092729]
[1752902906028,0.27368493,118210.0,118200.0,3.63659325]
[1752902914041,0.27368493,118210.0,118200.0,3.59092729]
[1752902915340,0.27368493,118210.0,118200.0,3.73132729]
[1752902917739,0.25713802,118210.0,118200.0,3.73132729]
[1752902917944,0.27366511,118210.0,118200.0,3.73132729]
[1752902918347,0.25713802,118210.0,118200.0,3.68945729]
[1752902918746,0.25713802,118210.0,118200.0,3.75020564]
[1752902919045,0.25713802,118210.0,118200.0,3.68945729]
[1752902919846,0.25713802,118210.0,118200.0,3.75020564]
[1752902925749,0.29267802,118210.0,118200.0,3.75020564]
[1752902927849,0.30920627,118210.0,118200.0,3.68945729]
[1752902928645,0.30920627,118210.0,118200.0,3.16992564]
[1752902928850,0.30920627,118210.0,118200.0,3.43823161]
[1752902929848,0.30920627,118210.0,118200.0,3.59768613]
[1752902946064,0.30920627,118210.0,118200.0,3.73808613]
[1752902946258,0.30920627,118210.0,118200.0,3.59768613]
[1752902949863,0.30920627,118210.0,118200.0,2.87608613]
[1752902950064,0.27366627,118210.0,118200.0,3.59768613]
[1752902954265,0.27366627,118210.0,118200.0,3.64116613]
[1752902957367,0.27366627,118210.0,118200.0,3.59549729]
[1752902962074,0.27366627,118210.0,118200.0,3.64116219]
[1752902965974,0.27366627,118210.0,118200.0,2.91956219]
[1752902966178,0.27366627,118210.0,118200.0,3.64116219]
[1752902969371,0.27366627,118210.0,118200.0,2.91956219]
[1752902969577,0.27366627,118210.0,118200.0,3.64116219]
[1752902973682,0.27366627,118210.0,118200.0,3.59549729]
[1752902980488,0.27366352,118210.0,118200.0,3.59549729]
[1752902981888,0.27366352,118210.0,118200.0,3.64116774]
[1752902985982,0.27366352,118210.0,118200.0,2.91956774]
[1752902986291,0.27366352,118210.0,118200.0,3.64116774]
[1752902986990,0.27366352,118210.0,118200.0,3.28036774]
[1752902987293,0.27366352,118210.0,118200.0,3.78156774]
[1752902987793,0.27366352,118210.0,118200.0,2.91956774]
[1752902987993,0.27366352,118210.0,118200.0,3.64116774]
[1752902989695,0.27366352,118210.0,118200.0,2.91956774]
[1752902989894,0.27366352,118210.0,118200.0,3.64116774]
[1752902990891,0.27366352,118210.0,118200.0,2.91956774]
[1752902991090,0.27366352,118210.0,118200.0,3.64116774]
[1752902994595,0.25713802,118210.0,118200.0,3.64116774]
[1752902994796,0.27367023,118210.0,118200.0,3.64116774]
[1752903000197,0.27367023,118210.0,118200.0,3.48171322]
[1752903000404,0.27367023,118210.0,118200.0,3.64116774]
[1752903003706,0.29129023,118210.0,118200.0,3.64116774]
[1752903004407,0.30704023,118210.0,118200.0,3.64116774]
[1752903008713,0.30704023,118210.0,118200.0,2.91956774]
[1752903009016,0.30704023,118210.0,118200.0,3.64116774]
[1752903009714,0.30704023,118210.0,118200.0,2.91956774]
[1752903009912,0.30704023,118210.0,118200.0,3.64116774]
[1752903010509,0.30704023,118210.0,118200.0,3.59549729]
[1752903010709,0.30704023,118210.0,118200.0,3.64117202]
[1752903011413,0.30804023,118210.0,118200.0,3.64617202]
[1752903011610,0.30804023,118210.0,118200.0,3.63417202]
[1752903011812,0.30904023,118210.0,118200.0,3.65117202]
[1752903012716,0.30904023,118210.0,118200.0,3.60549729]
[1752903016819,0.30904023,118210.0,118200.0,2.88389729]
[1752903017014,0.30904023,118210.0,118200.0,3.60549729]
[1752903018422,0.30904023,118210.0,118200.0,3.60570322]
[1752903018818,0.30904023,118210.0,118200.0,2.88410322]
[1752903019021,0.30904023,118210.0,118200.0,3.60570322]
[1752903020115,0.30904023,118210.0,118200.0,3.12733966]
[1752903020309,0.30904023,118210.0,118200.0,3.60570322]
[1752903020818,0.30904023,118210.0,118200.0,2.88410322]
[1752903021021,0.30904023,118210.0,118200.0,3.60570322]
[1752903022922,0.30904023,118210.0,118200.0,2.88410322]
[1752903023122,0.30904023,118210.0,118200.0,3.60570322]
[1752903024723,0.30904023,118210.0,118200.0,2.88410322]
[1752903024925,0.30904023,118210.0,118200.0,3.12733966]
[1752903025228,0.30904023,118210.0,118200.0,3.60570322]
[1752903025430,0.30904023,118210.0,118200.0,3.4462487]
[1752903025621,0.30904023,118210.0,118200.0,3.60570322]
[1752903027730,0.30904023,118210.0,118200.0,2.88410322]
[1752903028034,0.30904023,118210.0,118200.0,3.60570322]
[1752903030734,0.30904023,118210.0,118200.0,3.74610322]
[1752903031537,0.30904023,118210.0,118200.0,3.60570322]
[1752903031738,0.30904023,118210.0,118200.0,2.88410322]
[1752903031944,0.30904023,118210.0,118200.0,3.60570322]
[1752903034339,0.30904023,118210.0,118200.0,3.65137255]
[1752903036042,0.30904023,118210.0,118200.0,3.4462487]
[1752903036241,0.30904023,118210.0,118200.0,3.49191608]
[1752903036945,0.30904023,118210.0,118200.0,3.6513706]
[1752903037146,0.30904023,118210.0,118200.0,2.90867608]
[1752903037340,0.30904023,118210.0,118200.0,3.48951608]
[1752903037844,0.46849475,118210.0,118200.0,3.48951608]
[1752903038146,0.30904023,118210.0,118200.0,3.48951608]
[1752903040346,0.30904023,118210.0,118200.0,3.17060704]
[1752903040542,0.30904023,118210.0,118200.0,3.48951608]
[1752903041448,0.30904023,118210.0,118200.0,3.17060704]
[1752903041650,0.30904023,118210.0,118200.0,3.4438487]
[1752903042148,0.47810413,118210.0,118200.0,3.4438487]
[1752903042449,0.30904023,118210.0,118200.0,3.4438487]
[1752903043247,0.30904023,118210.0,118200.0,3.12493966]
[1752903043450,0.30904023,118210.0,118200.0,3.4438487]
[1752903043951,0.63755865,118210.0,118200.0,3.4438487]
[1752903044252,0.63755865,118210.0,118200.0,3.42678714]
[1752903045151,0.63755865,118210.0,118200.0,3.13158714]
[1752903045651,0.63755865,118210.0,118200.0,2.8126781]
[1752903045951,0.47810413,118210.0,118200.0,3.13158714]
[1752903046251,0.63755865,118210.0,118200.0,3.13158714]
[1752903046451,0.63755865,118210.0,118200.0,2.8126781]
[1752903046652,0.47810413,118210.0,118200.0,3.13158714]
[1752903046853,0.63755865,118210.0,118200.0,3.13158714]
[1752903050259,0.47810413,118210.0,118200.0,2.8126781]
[1752903050458,0.63755865,118210.0,118200.0,3.13158714]
[1752903051959,0.47810413,118210.0,118200.0,3.13158714]
[1752903052160,0.63755865,118210.0,118200.0,3.13158714]
[1752903054762,0.63755865,118210.0,118200.0,2.40998714]
[1752903054957,0.63755865,118210.0,118200.0,3.13158714]
[1752903055158,0.47810413,118210.0,118200.0,3.13158714]
[1752903055654,0.63755865,118210.0,118200.0,3.13158714]
[1752903055855,0.47810413,118210.0,118200.0,3.13158714]
[1752903061167,0.47810413,118210.0,118200.0,2.8126781]
[1752903061469,0.63755865,118210.0,118200.0,3.13158714]
[1752903062868,0.47810413,118210.0,118200.0,3.13158714]
[1752903063167,0.63755865,118210.0,118200.0,3.13158714]
[1752903064467,0.63755865,118210.0,118200.0,2.8126781]
[1752903064766,0.63755865,118210.0,118200.0,3.13158714]
[1752903065365,0.63755865,118210.0,118200.0,2.8126781]
[1752903065567,0.63755865,118210.0,118200.0,3.13158714]
[1752903069368,0.63755865,118210.0,118200.0,2.40998714]
[1752903069665,0.63755865,118210.0,118200.0,3.13158714]
[1752903072160,0.47810413,118210.0,118200.0,3.13158714]
[1752903072364,0.63755865,118210.0,118200.0,3.13158714]
[1752903079876,0.47810413,118210.0,118200.0,3.13158714]
[1752903080375,0.63755865,118210.0,118200.0,3.13158714]
[1752903082081,0.47810413,118210.0,118200.0,3.13158714]
[1752903082283,0.63755865,118210.0,118200.0,3.13158714]
[1752903083581,0.47810413,118210.0,118200.0,3.13158714]
[1752903087788,0.30904023,118210.0,118200.0,3.13158714]
[1752903088178,0.47810413,118210.0,118200.0,3.13158714]
[1752903090788,0.47810413,118210.0,118200.0,2.8126781]
[1752903091087,0.63755865,118210.0,118200.0,2.8126781]
[1752903091288,0.63755865,118210.0,118200.0,3.13158714]
[1752903091487,0.47810413,118210.0,118200.0,3.13158714]
[1752903094992,0.30904023,118210.0,118200.0,3.13158714]
[1752903096094,0.47810413,118210.0,118200.0,3.13158714]
[1752903097586,0.30904023,118210.0,118200.0,3.13158714]
[1752903102592,0.44473413,118210.0,118200.0,3.13158714]
[1752903102993,0.27567023,118210.0,118200.0,3.13158714]
[1752903108701,0.27567023,118210.0,118200.0,2.40998714]
[1752903108901,0.27567023,118210.0,118200.0,3.13158714]
[1752903110903,0.22128023,118210.0,118200.0,3.29104166]
[1752903112699,0.22128023,118210.0,118200.0,3.33670904]
[1752903115606,0.22128023,118210.0,118200.0,3.29104166]
[1752903116104,0.22128023,118210.0,118200.0,3.58624166]
[1752903116302,0.22128023,118210.0,118200.0,3.63190904]
[1752903119911,0.20474802,118210.0,118200.0,3.63190904]
[1752903120903,0.10114567,118210.0,118200.0,3.63190904]
[1752903121109,0.07475871,118210.0,118200.0,4.1102726]
[1752903121405,0.02638696,118210.0,118200.0,3.64699001]
[1752903122318,0.05107,118240.0,118230.0,0.1690353]
[1752903122608,0.06763734,118240.0,118230.0,1.79010434]
[1752903124314,0.07263734,118240.0,118230.0,1.79010434]
[1752903124815,0.07363734,118240.0,118230.0,1.79010434]
[1752903125210,0.09254734,118240.0,118230.0,0.89917084]
[1752903125416,0.50159586,118240.0,118230.0,1.63914536]
[1752903125617,0.34214134,118240.0,118230.0,1.63914536]
[1752903125811,0.34214134,118240.0,118230.0,1.68261536]
[1752903126317,0.34214134,118240.0,118230.0,1.84206988]
[1752903126318,0.34114134,118240.0,118230.0,1.84206988]
[1752903127218,0.33614134,118240.0,118230.0,1.84206988]
[1752903127415,0.34014134,118240.0,118230.0,1.52316084]
[1752903127614,0.34014134,118240.0,118230.0,1.84206988]
[1752903134022,0.34014134,118240.0,118230.0,2.13726988]
[1752903134223,0.34014134,118240.0,118230.0,2.23726988]
[1752903141932,0.34013274,118240.0,118230.0,2.23726988]
[1752903142227,0.30473274,118240.0,118230.0,2.23726988]
[1752903144429,0.30273274,118240.0,118230.0,2.25026988]
[1752903145035,0.25166274,118240.0,118230.0,2.24426988]
[1752903145231,0.25066274,118240.0,118230.0,2.26826988]
[1752903145434,0.30018274,118240.0,118230.0,2.26826988]
[1752903145636,0.30556274,118240.0,118230.0,2.26826988]
[1752903153537,0.30556274,118240.0,118230.0,1.54666988]
[1752903153736,0.30556274,118240.0,118230.0,2.26826988]
[1752903156946,0.30556274,118240.0,118230.0,2.31385611]
[1752903157854,0.30556274,118240.0,118230.0,2.26826988]
[1752903158055,0.30556274,118240.0,118230.0,2.33622059]
[1752903162655,0.30556274,118240.0,118230.0,2.49567511]
[1752903162850,0.30556274,118240.0,118230.0,2.38180682]
[1752903163046,0.30556274,118240.0,118230.0,2.54126134]
[1752903163251,0.30556274,118240.0,118230.0,2.38180682]
[1752903164357,0.30556274,118240.0,118230.0,3.55120682]